[Event "*** SCC Grand Prix: Titled Tuesday Blitz"]
[Site "Chess.com"]
[Date "2020.09.29"]
[Round "4"]
[White "Trovita84"]
[Black "Leo_C"]
[Result "0-1"]
[WhiteElo "1971"]
[BlackElo "2276"]
[TimeControl "180+1"]
[EndTime "10:38:52 PDT"]
[Termination "Leo_C won by resignation"]

1. e4 {[%clk 0:03:00.9]} 1... c6 {[%clk 0:02:58.9]} 2. d4 {[%clk 0:02:52.6]}
2... d5 {[%clk 0:02:59.2]} 3. e5 {[%clk 0:02:52.8]} 3... c5 {[%clk 0:02:59.2]}
4. Nf3 {[%clk 0:02:49.3]} 4... cxd4 {[%clk 0:02:55]} 5. Qxd4 {[%clk 0:02:47.9]}
5... Nc6 {[%clk 0:02:48.9]} 6. Qd1 {[%clk 0:02:43.9]} 6... Bg4 {[%clk
0:02:43.7]} 7. Bf4 {[%clk 0:02:42.7]} 7... e6 {[%clk 0:02:41.7]} 8. c3 {[%clk
0:02:29.5]} 8... Nge7 {[%clk 0:02:36.6]} 9. Bd3 {[%clk 0:02:29.4]} 9... Ng6
{[%clk 0:02:35.2]} 10. Bxg6 {[%clk 0:02:28.6]} 10... hxg6 {[%clk 0:02:34.9]} 11.
h3 {[%clk 0:02:29]} 11... g5 {[%clk 0:02:32.3]} 12. Bg3 {[%clk 0:02:16.5]} 12...
Qb6 {[%clk 0:02:20.5]} 13. Nbd2 {[%clk 0:01:52.5]} 13... f6 {[%clk 0:01:52.2]}
14. exf6 {[%clk 0:01:44.5]} 14... gxf6 {[%clk 0:01:51.7]} 15. O-O {[%clk
0:01:42.5]} 15... Bf5 {[%clk 0:01:36.6]} 16. Qb3 {[%clk 0:01:36.5]} 16... Qa6
{[%clk 0:01:32]} 17. Rfe1 {[%clk 0:01:30.7]} 17... Bc5 {[%clk 0:01:29.2]} 18.
Qxd5 {[%clk 0:01:22.9]} 18... Be7 {[%clk 0:01:14.1]} 19. Qb3 {[%clk 0:01:14.8]}
19... O-O-O {[%clk 0:01:12.2]} 20. Nd4 {[%clk 0:01:01.2]} 20... Nxd4 {[%clk
0:00:57.3]} 21. cxd4 {[%clk 0:01:00.8]} 21... Bd6 {[%clk 0:00:56.6]} 22. Bxd6
{[%clk 0:00:42.8]} 22... Qxd6 {[%clk 0:00:55.1]} 23. Rac1+ {[%clk 0:00:42.9]}
23... Kb8 {[%clk 0:00:39.1]} 24. Ne4 {[%clk 0:00:41.4]} 24... Qxd4 {[%clk
0:00:31.2]} 25. Nc5 {[%clk 0:00:38.3]} 25... b6 {[%clk 0:00:20.1]} 26. Nxe6
{[%clk 0:00:34.3]} 26... Bxe6 {[%clk 0:00:19.3]} 27. Qxe6 {[%clk 0:00:34.3]}
27... g4 {[%clk 0:00:14.9]} 28. hxg4 {[%clk 0:00:30.1]} 28... Qf4 {[%clk
0:00:09.9]} 29. Qe7 {[%clk 0:00:19.4]} 29... Qh2+ {[%clk 0:00:08.3]} 30. Kf1
{[%clk 0:00:18.9]} 30... Rd2 {[%clk 0:00:07.4]} 31. Qc7+ {[%clk 0:00:02]} 31...
Qxc7 {[%clk 0:00:06.2]} 32. Rxc7 {[%clk 0:00:02.9]} 32... Kxc7 {[%clk
0:00:06.9]} 0-1

[Event "*** SCC Grand Prix: Titled Tuesday Blitz"]
[Site "Chess.com"]
[Date "2020.09.29"]
[Round "4"]
[White "dyziotomi99"]
[Black "denispopov"]
[Result "1-0"]
[WhiteElo "2457"]
[BlackElo "1965"]
[TimeControl "180+1"]
[EndTime "10:38:53 PDT"]
[Termination "dyziotomi99 won on time"]

1. d4 {[%clk 0:03:00.9]} 1... Nf6 {[%clk 0:02:59]} 2. c4 {[%clk 0:02:56.6]} 2...
g6 {[%clk 0:02:56]} 3. f3 {[%clk 0:02:56.3]} 3... Nh5 {[%clk 0:02:49.2]} 4. e4
{[%clk 0:02:47.4]} 4... e5 {[%clk 0:02:43.7]} 5. Be3 {[%clk 0:02:46.9]} 5... Bg7
{[%clk 0:02:31.4]} 6. Ne2 {[%clk 0:02:45.9]} 6... d6 {[%clk 0:02:27.5]} 7. Nbc3
{[%clk 0:02:45]} 7... Nc6 {[%clk 0:02:25.6]} 8. d5 {[%clk 0:02:43.9]} 8... Ne7
{[%clk 0:02:24.8]} 9. Qd2 {[%clk 0:02:42]} 9... f5 {[%clk 0:02:23.1]} 10. O-O-O
{[%clk 0:02:33.5]} 10... f4 {[%clk 0:02:14.4]} 11. Bf2 {[%clk 0:02:31.9]} 11...
b6 {[%clk 0:02:09.8]} 12. Kb1 {[%clk 0:02:32.1]} 12... a5 {[%clk 0:02:08.1]} 13.
g4 {[%clk 0:02:31.5]} 13... Nf6 {[%clk 0:02:04]} 14. Nb5 {[%clk 0:02:27.2]}
14... h5 {[%clk 0:01:56.7]} 15. gxh5 {[%clk 0:02:26.3]} 15... Rxh5 {[%clk
0:01:53.5]} 16. Nec3 {[%clk 0:02:22.1]} 16... Kf7 {[%clk 0:01:50]} 17. h4 {[%clk
0:02:08.1]} 17... Rh7 {[%clk 0:01:32.3]} 18. Rg1 {[%clk 0:01:47]} 18... Nh5
{[%clk 0:01:29.7]} 19. Bd3 {[%clk 0:01:38.5]} 19... Bf6 {[%clk 0:01:27.6]} 20.
Rg2 {[%clk 0:01:32.6]} 20... Bd7 {[%clk 0:01:20.4]} 21. Rdg1 {[%clk 0:01:20.6]}
21... Qc8 {[%clk 0:01:17]} 22. Bxb6 {[%clk 0:01:15.8]} 22... Bxb5 {[%clk
0:00:47]} 23. Nxb5 {[%clk 0:01:14.6]} 23... Qd7 {[%clk 0:00:38.6]} 24. Bxc7
{[%clk 0:01:12.5]} 24... Nc8 {[%clk 0:00:37.4]} 25. Bxa5 {[%clk 0:01:09.1]}
25... Ng3 {[%clk 0:00:34.7]} 26. Bb4 {[%clk 0:01:01.6]} 26... Bxh4 {[%clk
0:00:33.5]} 27. a4 {[%clk 0:00:55.7]} 27... Rxa4 {[%clk 0:00:30.3]} 28. b3
{[%clk 0:00:52.3]} 28... Ra8 {[%clk 0:00:28.1]} 29. Qc3 {[%clk 0:00:43.9]} 29...
Bd8 {[%clk 0:00:19.6]} 30. c5 {[%clk 0:00:42.5]} 30... dxc5 {[%clk 0:00:17.5]}
31. Bxc5 {[%clk 0:00:39.7]} 31... Rb8 {[%clk 0:00:16]} 32. Qxe5 {[%clk
0:00:27.3]} 32... Rxb5 {[%clk 0:00:14.1]} 33. Qxf4+ {[%clk 0:00:27.6]} 33... Bf6
{[%clk 0:00:03.7]} 34. Bd4 {[%clk 0:00:16.4]} 34... Nf5 {[%clk 0:00:01.9]} 35.
Bxf6 {[%clk 0:00:14.1]} 1-0

[Event "*** SCC Grand Prix: Titled Tuesday Blitz"]
[Site "Chess.com"]
[Date "2020.09.29"]
[Round "4"]
[White "daro94"]
[Black "TST2014"]
[Result "1-0"]
[WhiteElo "2936"]
[BlackElo "2560"]
[TimeControl "180+1"]
[EndTime "10:38:58 PDT"]
[Termination "daro94 won by resignation"]

1. e4 {[%clk 0:03:00.9]} 1... c5 {[%clk 0:02:59.5]} 2. Nf3 {[%clk 0:03:01.1]}
2... Nc6 {[%clk 0:02:59.4]} 3. Nc3 {[%clk 0:02:59.6]} 3... d6 {[%clk 0:02:59.1]}
4. Bb5 {[%clk 0:02:58.7]} 4... e5 {[%clk 0:02:57.8]} 5. d3 {[%clk 0:02:56]} 5...
Be7 {[%clk 0:02:52.5]} 6. O-O {[%clk 0:02:55.7]} 6... Nf6 {[%clk 0:02:51.4]} 7.
Nd5 {[%clk 0:02:56.1]} 7... O-O {[%clk 0:02:45.2]} 8. Nxe7+ {[%clk 0:02:53.1]}
8... Qxe7 {[%clk 0:02:39]} 9. c3 {[%clk 0:02:53]} 9... a6 {[%clk 0:02:32.7]} 10.
Ba4 {[%clk 0:02:52.4]} 10... b5 {[%clk 0:02:32.5]} 11. Bc2 {[%clk 0:02:52.7]}
11... Bb7 {[%clk 0:02:28.6]} 12. Nh4 {[%clk 0:02:47.5]} 12... Bc8 {[%clk
0:01:53.1]} 13. Qf3 {[%clk 0:02:35.7]} 13... Ne8 {[%clk 0:01:44.4]} 14. Qg3
{[%clk 0:02:32.6]} 14... f6 {[%clk 0:01:03.5]} 15. f4 {[%clk 0:02:31.1]} 15...
exf4 {[%clk 0:00:59.5]} 16. Bxf4 {[%clk 0:02:32]} 16... g5 {[%clk 0:00:56.3]}
17. Nf5 {[%clk 0:02:09.9]} 17... Bxf5 {[%clk 0:00:54]} 18. exf5 {[%clk
0:02:10.8]} 18... Kh8 {[%clk 0:00:51.1]} 19. Bd2 {[%clk 0:02:09.5]} 19... d5
{[%clk 0:00:47.3]} 20. Rae1 {[%clk 0:02:08.3]} 20... Qd6 {[%clk 0:00:47.1]} 21.
Re6 {[%clk 0:01:47.1]} 21... Qxg3 {[%clk 0:00:39.4]} 22. hxg3 {[%clk 0:01:48]}
22... Ne5 {[%clk 0:00:33.2]} 23. Bxg5 {[%clk 0:01:41.6]} 23... Nxd3 {[%clk
0:00:30.8]} 24. Bh6 {[%clk 0:01:39.9]} 24... Nc7 {[%clk 0:00:23.8]} 25. Re7
{[%clk 0:01:32.5]} 25... Rg8 {[%clk 0:00:20.9]} 26. Bxd3 {[%clk 0:01:27.6]}
26... Rxg3 {[%clk 0:00:21.4]} 27. Rxc7 {[%clk 0:01:24.3]} 27... Rxd3 {[%clk
0:00:18.7]} 28. Bg7+ {[%clk 0:01:22.2]} 28... Kg8 {[%clk 0:00:19.3]} 29. Bxf6
{[%clk 0:01:23.1]} 29... Re8 {[%clk 0:00:16.2]} 30. Rg7+ {[%clk 0:01:18.8]}
30... Kf8 {[%clk 0:00:15.9]} 31. Rxh7 {[%clk 0:01:19.4]} 31... Re2 {[%clk
0:00:15.9]} 32. Bh4 {[%clk 0:01:08.3]} 32... Rdd2 {[%clk 0:00:13.4]} 33. Rf2
{[%clk 0:01:05.8]} 33... Rxb2 {[%clk 0:00:12.4]} 34. Rxe2 {[%clk 0:01:00.8]}
34... Rxe2 {[%clk 0:00:12.9]} 35. Rd7 {[%clk 0:00:57.4]} 35... Re4 {[%clk
0:00:12.5]} 36. g3 {[%clk 0:00:56.1]} 36... Rc4 {[%clk 0:00:11.2]} 37. f6 {[%clk
0:00:53.9]} 37... Rxc3 {[%clk 0:00:11.2]} 38. Kg2 {[%clk 0:00:53.7]} 38... d4
{[%clk 0:00:09.3]} 39. Bg5 {[%clk 0:00:53.3]} 39... Rc2+ {[%clk 0:00:09.1]} 40.
Kh3 {[%clk 0:00:53.3]} 40... Rf2 {[%clk 0:00:08.8]} 41. Kg4 {[%clk 0:00:47.6]}
41... b4 {[%clk 0:00:07.8]} 42. Kh5 {[%clk 0:00:47.4]} 42... a5 {[%clk
0:00:07.9]} 43. Kg6 {[%clk 0:00:47.6]} 43... Ke8 {[%clk 0:00:07.6]} 44. Rd5
{[%clk 0:00:44.6]} 44... a4 {[%clk 0:00:06.2]} 45. Bf4 {[%clk 0:00:42.5]} 45...
b3 {[%clk 0:00:04.9]} 46. f7+ {[%clk 0:00:42.5]} 46... Ke7 {[%clk 0:00:04.9]}
47. Re5+ {[%clk 0:00:42.3]} 47... Kd7 {[%clk 0:00:04.8]} 48. f8=Q {[%clk
0:00:42.4]} 48... bxa2 {[%clk 0:00:05.3]} 49. Qe7+ {[%clk 0:00:41.8]} 49... Kc6
{[%clk 0:00:05.1]} 50. Rxc5+ {[%clk 0:00:42.1]} 50... Kb6 {[%clk 0:00:05.7]} 51.
Qc7+ {[%clk 0:00:42.9]} 1-0

[Event "*** SCC Grand Prix: Titled Tuesday Blitz"]
[Site "Chess.com"]
[Date "2020.09.29"]
[Round "4"]
[White "FM_VS99"]
[Black "vpsetter"]
[Result "0-1"]
[WhiteElo "2380"]
[BlackElo "2617"]
[TimeControl "180+1"]
[EndTime "10:38:58 PDT"]
[Termination "vpsetter won by resignation"]

1. Nf3 {[%clk 0:03:00.9]} 1... d5 {[%clk 0:02:59.4]} 2. g3 {[%clk 0:03:01.5]}
2... c5 {[%clk 0:02:59.4]} 3. Bg2 {[%clk 0:03:01.9]} 3... Nc6 {[%clk 0:02:59.5]}
4. d4 {[%clk 0:03:02]} 4... Bg4 {[%clk 0:02:54.8]} 5. Ne5 {[%clk 0:02:59.7]}
5... Bh5 {[%clk 0:02:42]} 6. Nxc6 {[%clk 0:02:57.6]} 6... bxc6 {[%clk 0:02:42]}
7. dxc5 {[%clk 0:02:56.1]} 7... Qa5+ {[%clk 0:02:33.1]} 8. Bd2 {[%clk
0:02:48.8]} 8... Qxc5 {[%clk 0:02:32.6]} 9. O-O {[%clk 0:02:48.7]} 9... Nf6
{[%clk 0:02:28.6]} 10. Be3 {[%clk 0:02:42.7]} 10... Qb5 {[%clk 0:02:25.3]} 11.
c4 {[%clk 0:02:39.4]} 11... Qxc4 {[%clk 0:02:09.3]} 12. Na3 {[%clk 0:02:27.5]}
12... Qa6 {[%clk 0:01:54.1]} 13. Re1 {[%clk 0:02:27.3]} 13... e5 {[%clk
0:01:50.4]} 14. Nc2 {[%clk 0:02:13.2]} 14... Rb8 {[%clk 0:01:41.5]} 15. b3
{[%clk 0:02:13]} 15... Bd6 {[%clk 0:01:36.6]} 16. Bg5 {[%clk 0:02:10.2]} 16...
Nd7 {[%clk 0:01:23.4]} 17. Ne3 {[%clk 0:01:48.6]} 17... Bb4 {[%clk 0:01:05.5]}
18. Nf5 {[%clk 0:01:45.1]} 18... O-O {[%clk 0:00:56.3]} 19. Bd2 {[%clk
0:01:43.1]} 19... Rfe8 {[%clk 0:00:26.2]} 20. Bxb4 {[%clk 0:01:39.5]} 20... Rxb4
{[%clk 0:00:26]} 21. Qd2 {[%clk 0:01:40.1]} 21... Qb6 {[%clk 0:00:16.9]} 22. e4
{[%clk 0:01:16.3]} 22... Bg6 {[%clk 0:00:13.7]} 23. Nd6 {[%clk 0:01:03.4]} 23...
Re6 {[%clk 0:00:13.7]} 24. Nc4 {[%clk 0:00:49.9]} 24... dxc4 {[%clk 0:00:06.7]}
25. Qxd7 {[%clk 0:00:49.5]} 25... h5 {[%clk 0:00:05.1]} 26. bxc4 {[%clk
0:00:45.6]} 26... Rxc4 {[%clk 0:00:04.6]} 27. Rac1 {[%clk 0:00:34.1]} 27... Rxc1
{[%clk 0:00:04.1]} 28. Rxc1 {[%clk 0:00:33.6]} 28... Qd4 {[%clk 0:00:03.6]} 29.
Qc8+ {[%clk 0:00:18.5]} 29... Kh7 {[%clk 0:00:03.7]} 30. Re1 {[%clk 0:00:15.1]}
30... c5 {[%clk 0:00:02.8]} 31. Qa6 {[%clk 0:00:12.3]} 31... Rxa6 {[%clk
0:00:02.6]} 32. Rf1 {[%clk 0:00:12.4]} 32... Rxa2 {[%clk 0:00:02.8]} 0-1

[Event "*** SCC Grand Prix: Titled Tuesday Blitz"]
[Site "Chess.com"]
[Date "2020.09.29"]
[Round "4"]
[White "theblitzchamp"]
[Black "Tactictic"]
[Result "0-1"]
[WhiteElo "2624"]
[BlackElo "2439"]
[TimeControl "180+1"]
[EndTime "10:38:59 PDT"]
[Termination "Tactictic won on time"]

1. e4 {[%clk 0:03:00.9]} 1... c5 {[%clk 0:03:00]} 2. Nf3 {[%clk 0:03:00]} 2...
d6 {[%clk 0:03:00.4]} 3. d4 {[%clk 0:03:00.9]} 3... cxd4 {[%clk 0:03:01.1]} 4.
Nxd4 {[%clk 0:03:01.8]} 4... Nf6 {[%clk 0:03:01.7]} 5. Nc3 {[%clk 0:03:02.4]}
5... a6 {[%clk 0:03:01.8]} 6. Bc4 {[%clk 0:03:02.4]} 6... e6 {[%clk 0:03:01.6]}
7. Bb3 {[%clk 0:03:02.8]} 7... b5 {[%clk 0:02:59.4]} 8. Bg5 {[%clk 0:03:02.5]}
8... Be7 {[%clk 0:02:58.8]} 9. Qf3 {[%clk 0:03:02.5]} 9... Qb6 {[%clk
0:02:55.7]} 10. O-O-O {[%clk 0:03:02.3]} 10... O-O {[%clk 0:02:51.6]} 11. Rhe1
{[%clk 0:03:01.5]} 11... Nc6 {[%clk 0:02:47]} 12. Nxc6 {[%clk 0:02:08.8]} 12...
Qxc6 {[%clk 0:02:47.9]} 13. Kb1 {[%clk 0:01:55]} 13... Bb7 {[%clk 0:02:44.9]}
14. Qg3 {[%clk 0:01:43.7]} 14... Rfd8 {[%clk 0:02:26.7]} 15. f3 {[%clk
0:01:03.4]} 15... a5 {[%clk 0:02:21.2]} 16. a3 {[%clk 0:00:47.2]} 16... b4
{[%clk 0:02:19.9]} 17. axb4 {[%clk 0:00:48.1]} 17... axb4 {[%clk 0:02:20.6]} 18.
Na2 {[%clk 0:00:47.6]} 18... Qc5 {[%clk 0:01:48.4]} 19. Qh4 {[%clk 0:00:39.7]}
19... Ba6 {[%clk 0:01:36.8]} 20. Rd2 {[%clk 0:00:34.9]} 20... Bc4 {[%clk
0:01:34.8]} 21. Be3 {[%clk 0:00:16.3]} 21... Qc7 {[%clk 0:01:10.7]} 22. Rd4
{[%clk 0:00:09.7]} 22... Bxb3 {[%clk 0:01:08.2]} 23. cxb3 {[%clk 0:00:10.6]}
23... Qa5 {[%clk 0:01:01.4]} 24. Nc1 {[%clk 0:00:10.1]} 24... Rdc8 {[%clk
0:00:39.9]} 25. Rc4 {[%clk 0:00:09.8]} 25... d5 {[%clk 0:00:12.7]} 26. Rxc8+
{[%clk 0:00:08.4]} 26... Rxc8 {[%clk 0:00:13.6]} 27. e5 {[%clk 0:00:08.9]} 27...
Ra8 {[%clk 0:00:03.6]} 28. exf6 {[%clk 0:00:08.5]} 28... Qa1+ {[%clk 0:00:03.8]}
29. Kc2 {[%clk 0:00:08.3]} 29... Bxf6 {[%clk 0:00:04.1]} 30. Qf2 {[%clk
0:00:06.8]} 30... Qxb2+ {[%clk 0:00:02.8]} 31. Kd1 {[%clk 0:00:07]} 31... Qc3
{[%clk 0:00:02.1]} 32. Qd2 {[%clk 0:00:06.3]} 32... Qc6 {[%clk 0:00:02.3]} 33.
Qxb4 {[%clk 0:00:05.1]} 33... Bc3 {[%clk 0:00:02.1]} 0-1

[Event "*** SCC Grand Prix: Titled Tuesday Blitz"]
[Site "Chess.com"]
[Date "2020.09.29"]
[Round "4"]
[White "mamey78"]
[Black "MisiekZielony"]
[Result "1-0"]
[WhiteElo "2407"]
[BlackElo "2233"]
[TimeControl "180+1"]
[EndTime "10:38:59 PDT"]
[Termination "mamey78 won on time"]

1. e4 {[%clk 0:03:00.7]} 1... Nf6 {[%clk 0:02:59.8]} 2. e5 {[%clk 0:03:00.6]}
2... Nd5 {[%clk 0:03:00]} 3. d4 {[%clk 0:03:01.5]} 3... d6 {[%clk 0:03:00.3]} 4.
Bc4 {[%clk 0:03:01.2]} 4... Nb6 {[%clk 0:02:59.9]} 5. Bb3 {[%clk 0:03:01.1]}
5... dxe5 {[%clk 0:03:00.1]} 6. Qh5 {[%clk 0:03:01.5]} 6... e6 {[%clk
0:03:00.1]} 7. dxe5 {[%clk 0:03:01.9]} 7... Nc6 {[%clk 0:03:00.1]} 8. Nf3 {[%clk
0:03:02]} 8... Nd7 {[%clk 0:02:57.1]} 9. Bf4 {[%clk 0:02:54.5]} 9... g6 {[%clk
0:02:42.8]} 10. Qh3 {[%clk 0:02:47.3]} 10... h6 {[%clk 0:02:33.8]} 11. Nc3
{[%clk 0:02:41.6]} 11... Bg7 {[%clk 0:02:32.2]} 12. O-O-O {[%clk 0:02:20.2]}
12... Qe7 {[%clk 0:02:31.5]} 13. Qg4 {[%clk 0:02:09.7]} 13... Ndxe5 {[%clk
0:02:12.1]} 14. Nxe5 {[%clk 0:02:01.6]} 14... Nxe5 {[%clk 0:01:35.8]} 15. Qg3
{[%clk 0:01:59.7]} 15... Qc5 {[%clk 0:00:56.4]} 16. Rhe1 {[%clk 0:01:54.6]}
16... Nc4 {[%clk 0:00:51.5]} 17. Qd3 {[%clk 0:01:27.7]} 17... Nd6 {[%clk
0:00:50.6]} 18. Ne4 {[%clk 0:01:26.1]} 18... Qb6 {[%clk 0:00:38.2]} 19. Nxd6+
{[%clk 0:01:18.2]} 19... cxd6 {[%clk 0:00:37.7]} 20. Bxd6 {[%clk 0:01:19.1]}
20... Bd7 {[%clk 0:00:31.6]} 21. c3 {[%clk 0:01:10.5]} 21... O-O-O {[%clk
0:00:25.7]} 22. Be7 {[%clk 0:01:08.1]} 22... Bc6 {[%clk 0:00:25.4]} 23. Bxd8
{[%clk 0:01:07.8]} 23... Rxd8 {[%clk 0:00:24.7]} 24. Qxd8+ {[%clk 0:01:07]}
24... Qxd8 {[%clk 0:00:25.2]} 25. Rxd8+ {[%clk 0:01:07.7]} 25... Kxd8 {[%clk
0:00:25.4]} 26. f3 {[%clk 0:01:08.3]} 26... Ke7 {[%clk 0:00:22.1]} 27. Bc2
{[%clk 0:01:07.8]} 27... f5 {[%clk 0:00:21.3]} 28. Bb3 {[%clk 0:01:04.9]} 28...
Bd7 {[%clk 0:00:17.3]} 29. Kc2 {[%clk 0:01:03.9]} 29... g5 {[%clk 0:00:15.7]}
30. Bc4 {[%clk 0:01:01.2]} 30... Kd6 {[%clk 0:00:09.1]} 31. b3 {[%clk
0:00:58.5]} 31... Be5 {[%clk 0:00:09]} 32. g3 {[%clk 0:00:48.7]} 32... Bc6
{[%clk 0:00:06.8]} 33. f4 {[%clk 0:00:45.1]} 33... gxf4 {[%clk 0:00:06.7]} 34.
gxf4 {[%clk 0:00:46]} 34... Bxf4 {[%clk 0:00:07]} 35. Rxe6+ {[%clk 0:00:46.1]}
35... Kd7 {[%clk 0:00:07]} 36. Re2 {[%clk 0:00:41.5]} 36... Bd6 {[%clk
0:00:04.3]} 37. Bd3 {[%clk 0:00:39.5]} 37... f4 {[%clk 0:00:02.5]} 38. Be4
{[%clk 0:00:34.1]} 38... f3 {[%clk 0:00:02.2]} 39. Bxc6+ {[%clk 0:00:33.9]}
39... Kxc6 {[%clk 0:00:02.5]} 40. Rf2 {[%clk 0:00:34.8]} 40... Kd5 {[%clk
0:00:02.8]} 41. Kd3 {[%clk 0:00:34.8]} 41... Bf4 {[%clk 0:00:01.6]} 42. h3
{[%clk 0:00:34.3]} 1-0

[Event "*** SCC Grand Prix: Titled Tuesday Blitz"]
[Site "Chess.com"]
[Date "2020.09.29"]
[Round "4"]
[White "ehrenfeld"]
[Black "Kumi29"]
[Result "0-1"]
[WhiteElo "2526"]
[BlackElo "2392"]
[TimeControl "180+1"]
[EndTime "10:39:00 PDT"]
[Termination "Kumi29 won on time"]

1. e4 {[%clk 0:03:00.9]} 1... c5 {[%clk 0:02:59.4]} 2. d3 {[%clk 0:03:00.1]}
2... Nc6 {[%clk 0:02:58.1]} 3. f4 {[%clk 0:02:59.3]} 3... d5 {[%clk 0:02:51.6]}
4. Be2 {[%clk 0:02:58.4]} 4... dxe4 {[%clk 0:02:46]} 5. dxe4 {[%clk 0:02:58.1]}
5... Qxd1+ {[%clk 0:02:46.9]} 6. Bxd1 {[%clk 0:02:58.3]} 6... e5 {[%clk
0:02:47.8]} 7. Nc3 {[%clk 0:02:55.7]} 7... exf4 {[%clk 0:02:32.3]} 8. Nb5 {[%clk
0:02:43.1]} 8... Kd8 {[%clk 0:02:22.6]} 9. Bxf4 {[%clk 0:02:41.9]} 9... a6
{[%clk 0:02:07.2]} 10. Nd6 {[%clk 0:02:26.8]} 10... Bxd6 {[%clk 0:02:02.5]} 11.
Bxd6 {[%clk 0:02:26.6]} 11... Nf6 {[%clk 0:02:02.5]} 12. Bf3 {[%clk 0:02:23.4]}
12... Nxe4 {[%clk 0:01:34]} 13. Bxe4 {[%clk 0:02:11.8]} 13... Re8 {[%clk
0:01:34]} 14. O-O-O {[%clk 0:02:07.3]} 14... Rxe4 {[%clk 0:01:34.2]} 15. Nf3
{[%clk 0:01:47.6]} 15... Bg4 {[%clk 0:01:32]} 16. Bxc5+ {[%clk 0:01:39.4]} 16...
Kc7 {[%clk 0:01:31.4]} 17. Bd6+ {[%clk 0:01:36.7]} 17... Kb6 {[%clk 0:01:31.3]}
18. Rd3 {[%clk 0:01:28.9]} 18... Rae8 {[%clk 0:01:28.9]} 19. Rhd1 {[%clk
0:00:44.9]} 19... f6 {[%clk 0:01:26.3]} 20. h3 {[%clk 0:00:34.7]} 20... Bh5
{[%clk 0:01:24.3]} 21. R1d2 {[%clk 0:00:29.4]} 21... R8e6 {[%clk 0:00:59.3]} 22.
Rb3+ {[%clk 0:00:27.7]} 22... Ka7 {[%clk 0:00:57.8]} 23. Bc5+ {[%clk 0:00:26.9]}
23... Kb8 {[%clk 0:00:58]} 24. Bb6 {[%clk 0:00:27]} 24... Re1+ {[%clk
0:00:54.5]} 25. Rd1 {[%clk 0:00:25.3]} 25... Rxd1+ {[%clk 0:00:51.3]} 26. Kxd1
{[%clk 0:00:25.4]} 26... Ne5 {[%clk 0:00:44.6]} 27. Kc1 {[%clk 0:00:15.1]} 27...
Bxf3 {[%clk 0:00:39.9]} 28. gxf3 {[%clk 0:00:14.2]} 28... Nc4 {[%clk 0:00:40.3]}
29. Bf2 {[%clk 0:00:11.4]} 29... Re2 {[%clk 0:00:40.9]} 30. Bg3+ {[%clk
0:00:10.4]} 30... Ka7 {[%clk 0:00:36.6]} 31. Rc3 {[%clk 0:00:10.7]} 31... b5
{[%clk 0:00:33.6]} 32. b3 {[%clk 0:00:10]} 32... Ne3 {[%clk 0:00:33.2]} 33. Rc7+
{[%clk 0:00:08.8]} 33... Kb6 {[%clk 0:00:32.4]} 34. Rc8 {[%clk 0:00:07.7]} 34...
Rg2 {[%clk 0:00:26.8]} 35. Bd6 {[%clk 0:00:06.6]} 35... Nf5 {[%clk 0:00:19.2]}
36. Bf4 {[%clk 0:00:05.6]} 36... g5 {[%clk 0:00:18.9]} 37. Bb8 {[%clk
0:00:04.3]} 37... Kb7 {[%clk 0:00:17.7]} 38. Rf8 {[%clk 0:00:04.1]} 38... Ne3
{[%clk 0:00:16.6]} 39. c3 {[%clk 0:00:02]} 39... Rc2+ {[%clk 0:00:15.8]} 40. Kb1
{[%clk 0:00:01.7]} 40... Rxc3 {[%clk 0:00:15.8]} 0-1

[Event "*** SCC Grand Prix: Titled Tuesday Blitz"]
[Site "Chess.com"]
[Date "2020.09.29"]
[Round "4"]
[White "DarZay"]
[Black "Sergienko_Sergey"]
[Result "1-0"]
[WhiteElo "2107"]
[BlackElo "2359"]
[TimeControl "180+1"]
[EndTime "10:39:00 PDT"]
[Termination "DarZay won on time"]

1. e4 {[%clk 0:03:00]} 1... c5 {[%clk 0:02:59.3]} 2. Nf3 {[%clk 0:02:59.2]} 2...
a6 {[%clk 0:02:58]} 3. d4 {[%clk 0:02:57.3]} 3... cxd4 {[%clk 0:02:57.3]} 4.
Nxd4 {[%clk 0:02:57.1]} 4... Nf6 {[%clk 0:02:55.5]} 5. Nc3 {[%clk 0:02:56.4]}
5... e5 {[%clk 0:02:54.3]} 6. Nb3 {[%clk 0:02:54.3]} 6... Bb4 {[%clk 0:02:53.1]}
7. Bg5 {[%clk 0:02:37.2]} 7... d6 {[%clk 0:02:50.1]} 8. f3 {[%clk 0:02:34.1]}
8... Nbd7 {[%clk 0:02:42.7]} 9. Bc4 {[%clk 0:02:33.6]} 9... Qc7 {[%clk
0:02:40.5]} 10. Qd3 {[%clk 0:02:20.1]} 10... b5 {[%clk 0:02:23.1]} 11. Bd5
{[%clk 0:02:19.5]} 11... Nxd5 {[%clk 0:02:19.1]} 12. exd5 {[%clk 0:02:18.8]}
12... Bxc3+ {[%clk 0:02:07.6]} 13. bxc3 {[%clk 0:02:17]} 13... O-O {[%clk
0:01:56.4]} 14. O-O {[%clk 0:02:11.9]} 14... Bb7 {[%clk 0:01:50.9]} 15. Rae1
{[%clk 0:02:10.5]} 15... Rac8 {[%clk 0:01:44.2]} 16. Bd2 {[%clk 0:01:43.1]}
16... Nf6 {[%clk 0:01:33.2]} 17. f4 {[%clk 0:01:43]} 17... e4 {[%clk 0:01:29.6]}
18. Qg3 {[%clk 0:01:33.5]} 18... Bxd5 {[%clk 0:01:13.5]} 19. Nd4 {[%clk
0:01:33.3]} 19... Qd7 {[%clk 0:01:06.7]} 20. f5 {[%clk 0:01:28.2]} 20... Kh8
{[%clk 0:01:01.2]} 21. Bg5 {[%clk 0:01:23.4]} 21... Rfe8 {[%clk 0:00:41.1]} 22.
Bxf6 {[%clk 0:01:09.4]} 22... gxf6 {[%clk 0:00:40.8]} 23. Qh4 {[%clk 0:01:09.4]}
23... Qe7 {[%clk 0:00:34.8]} 24. Re3 {[%clk 0:01:08.8]} 24... Rg8 {[%clk
0:00:30.7]} 25. Rh3 {[%clk 0:01:06.6]} 25... Rg7 {[%clk 0:00:30.4]} 26. Ne2
{[%clk 0:01:05.1]} 26... Qe5 {[%clk 0:00:26.2]} 27. Nf4 {[%clk 0:00:54.6]} 27...
Rcg8 {[%clk 0:00:21.4]} 28. g3 {[%clk 0:00:47.5]} 28... e3 {[%clk 0:00:18.9]}
29. Nxd5 {[%clk 0:00:42.3]} 29... Qxd5 {[%clk 0:00:16.5]} 30. Qxf6 {[%clk
0:00:42.5]} 30... Re8 {[%clk 0:00:08]} 31. Re1 {[%clk 0:00:37.7]} 31... e2
{[%clk 0:00:07.7]} 32. Rh4 {[%clk 0:00:32.7]} 32... Qd1 {[%clk 0:00:05.4]} 33.
Kf2 {[%clk 0:00:31.7]} 33... Qxc2 {[%clk 0:00:03.2]} 34. Rg4 {[%clk 0:00:29.1]}
34... Rg8 {[%clk 0:00:03.1]} 35. Rh4 {[%clk 0:00:15.2]} 35... Qd3 {[%clk
0:00:01]} 36. Rxh7+ {[%clk 0:00:14.1]} 1-0